[Event "Early-Titled-Tuesday-Blitz-February-27-2024"]
[Site "Chess.com"]
[Date "2024.02.27"]
[Round "11"]
[White "Semen16"]
[Black "KuzubovYuriy"]
[Result "1/2-1/2"]
[WhiteElo "2739"]
[BlackElo "2941"]
[TimeControl "180+1"]
[EndTime "10:07:05 PST"]
[Termination "Game drawn - insufficient material"]

1. e4 {[%clk 0:03:00.9]} 1... e6 {[%clk 0:02:58.5]} 2. d4 {[%clk 0:03:00.2]}
2... d5 {[%clk 0:02:59.1]} 3. Nc3 {[%clk 0:03:01]} 3... Bb4 {[%clk 0:02:58.7]}
4. e5 {[%clk 0:03:00.5]} 4... Ne7 {[%clk 0:02:58.5]} 5. Qg4 {[%clk 0:02:47]}
5... Nf5 {[%clk 0:02:55.5]} 6. Bd3 {[%clk 0:02:43.2]} 6... h5 {[%clk 0:02:54.8]}
7. Qf4 {[%clk 0:02:43.2]} 7... g5 {[%clk 0:02:45.6]} 8. Qxg5 {[%clk 0:02:39.5]}
8... Qxg5 {[%clk 0:02:46.5]} 9. Bxg5 {[%clk 0:02:39.7]} 9... Nxd4 {[%clk
0:02:47]} 10. Bd2 {[%clk 0:02:20.5]} 10... Nbc6 {[%clk 0:02:38.5]} 11. f4 {[%clk
0:02:20.5]} 11... Ne7 {[%clk 0:02:34.7]} 12. Nge2 {[%clk 0:02:17.8]} 12... Nxe2
{[%clk 0:02:29.2]} 13. Nxe2 {[%clk 0:02:18.7]} 13... Bxd2+ {[%clk 0:02:27.4]}
14. Kxd2 {[%clk 0:02:19.6]} 14... c5 {[%clk 0:02:25.1]} 15. c3 {[%clk
0:02:19.7]} 15... Bd7 {[%clk 0:02:22.3]} 16. Raf1 {[%clk 0:02:15.3]} 16... Bc6
{[%clk 0:02:17.7]} 17. Rhg1 {[%clk 0:02:13.4]} 17... Kd7 {[%clk 0:02:11.3]} 18.
f5 {[%clk 0:02:10.4]} 18... Rag8 {[%clk 0:02:04.5]} 19. fxe6+ {[%clk 0:02:08.1]}
19... Kxe6 {[%clk 0:02:04.6]} 20. Rf6+ {[%clk 0:02:03.2]} 20... Kxe5 {[%clk
0:02:01.7]} 21. Rxf7 {[%clk 0:02:02.6]} 21... Kd6 {[%clk 0:01:54.9]} 22. Rf6+
{[%clk 0:01:44]} 22... Ke5 {[%clk 0:01:50.3]} 23. Rf7 {[%clk 0:01:26.3]} 23...
Ke6 {[%clk 0:01:50.4]} 24. Rf2 {[%clk 0:01:09.5]} 24... h4 {[%clk 0:01:49.8]}
25. Nf4+ {[%clk 0:01:09.7]} 25... Kd6 {[%clk 0:01:49]} 26. Re1 {[%clk
0:01:09.9]} 26... Bd7 {[%clk 0:01:46]} 27. Rfe2 {[%clk 0:01:08.2]} 27... Nc6
{[%clk 0:01:41.5]} 28. c4 {[%clk 0:00:35.3]} 28... d4 {[%clk 0:01:38.8]} 29. Nd5
{[%clk 0:00:28.1]} 29... Rh6 {[%clk 0:01:35.4]} 30. Be4 {[%clk 0:00:26.8]} 30...
Rf8 {[%clk 0:01:24.3]} 31. b3 {[%clk 0:00:26.5]} 31... Bg4 {[%clk 0:01:19.4]}
32. Bf3 {[%clk 0:00:26.1]} 32... Bxf3 {[%clk 0:01:19.3]} 33. gxf3 {[%clk
0:00:27]} 33... Rxf3 {[%clk 0:01:19.2]} 34. Re8 {[%clk 0:00:27]} 34... Rg6
{[%clk 0:01:12.9]} 35. R1e2 {[%clk 0:00:25.7]} 35... h3 {[%clk 0:01:09.1]} 36.
Rh8 {[%clk 0:00:22]} 36... d3 {[%clk 0:00:45.5]} 37. Re3 {[%clk 0:00:15.8]}
37... Rg2+ {[%clk 0:00:44.3]} 38. Kxd3 {[%clk 0:00:10.1]} 38... Ne5+ {[%clk
0:00:43.6]} 39. Kc3 {[%clk 0:00:10.6]} 39... Rxe3+ {[%clk 0:00:42.9]} 40. Nxe3
{[%clk 0:00:11.5]} 40... Rxh2 {[%clk 0:00:43.1]} 41. Rh6+ {[%clk 0:00:10.1]}
41... Kd7 {[%clk 0:00:38.6]} 42. Rh5 {[%clk 0:00:09.1]} 42... Nf3 {[%clk
0:00:38.3]} 43. Ng4 {[%clk 0:00:06.8]} 43... Rh1 {[%clk 0:00:33.2]} 44. Nf2
{[%clk 0:00:06.3]} 44... Rc1+ {[%clk 0:00:25.6]} 45. Kb2 {[%clk 0:00:06.7]}
45... Re1 {[%clk 0:00:26.2]} 46. Nxh3 {[%clk 0:00:06.4]} 46... Re2+ {[%clk
0:00:26.5]} 47. Kb1 {[%clk 0:00:03.5]} 47... b6 {[%clk 0:00:20.5]} 48. Nf4
{[%clk 0:00:03.1]} 48... Rf2 {[%clk 0:00:18.5]} 49. Nd3 {[%clk 0:00:02.9]} 49...
Rd2 {[%clk 0:00:17.1]} 50. Rd5+ {[%clk 0:00:03.2]} 50... Kc7 {[%clk 0:00:16.2]}
51. Nf4 {[%clk 0:00:02.9]} 51... Rf2 {[%clk 0:00:15]} 52. Ne6+ {[%clk
0:00:03.4]} 52... Kc6 {[%clk 0:00:15.3]} 53. Nd8+ {[%clk 0:00:03.6]} 53... Kc7
{[%clk 0:00:14.8]} 54. Ne6+ {[%clk 0:00:04.5]} 54... Kc8 {[%clk 0:00:15.1]} 55.
Rd8+ {[%clk 0:00:04.5]} 55... Kb7 {[%clk 0:00:15.4]} 56. Rd3 {[%clk 0:00:05.1]}
56... Ne5 {[%clk 0:00:14.8]} 57. Rd5 {[%clk 0:00:04.9]} 57... Nc6 {[%clk
0:00:14.8]} 58. Nd8+ {[%clk 0:00:05.1]} 58... Kc7 {[%clk 0:00:14.1]} 59. Nxc6
{[%clk 0:00:04.9]} 59... Kxc6 {[%clk 0:00:15]} 60. Rd3 {[%clk 0:00:04.7]} 60...
a6 {[%clk 0:00:13.9]} 61. Rd1 {[%clk 0:00:04.1]} 61... b5 {[%clk 0:00:14.2]} 62.
cxb5+ {[%clk 0:00:04.3]} 62... axb5 {[%clk 0:00:14]} 63. Rc1 {[%clk 0:00:04.8]}
63... Kb6 {[%clk 0:00:14.3]} 64. Rc2 {[%clk 0:00:05.2]} 64... Rf1+ {[%clk
0:00:13.1]} 65. Kb2 {[%clk 0:00:05.3]} 65... Rf5 {[%clk 0:00:13]} 66. a3 {[%clk
0:00:05.7]} 66... Rf3 {[%clk 0:00:12.6]} 67. Rd2 {[%clk 0:00:06.1]} 67... Ka5
{[%clk 0:00:12.5]} 68. Rc2 {[%clk 0:00:06.6]} 68... Rf5 {[%clk 0:00:12]} 69.
Rxc5 {[%clk 0:00:06]} 69... Rxc5 {[%clk 0:00:11.8]} 70. b4+ {[%clk 0:00:06.7]}
70... Kb6 {[%clk 0:00:12.5]} 71. bxc5+ {[%clk 0:00:07.6]} 71... Kxc5 {[%clk
0:00:13.2]} 72. Kb3 {[%clk 0:00:08.2]} 72... Kb6 {[%clk 0:00:13.9]} 73. a4
{[%clk 0:00:08.8]} 73... Ka6 {[%clk 0:00:14.8]} 74. axb5+ {[%clk 0:00:09.2]}
74... Kxb5 {[%clk 0:00:15.3]} 1/2-1/2

[Event "Early-Titled-Tuesday-Blitz-February-27-2024"]
[Site "Chess.com"]
[Date "2024.02.27"]
[Round "11"]
[White "Slovineanu"]
[Black "Pelusiansky"]
[Result "1/2-1/2"]
[WhiteElo "2480"]
[BlackElo "2585"]
[TimeControl "180+1"]
[EndTime "10:07:05 PST"]
[Termination "Game drawn by repetition"]

1. d4 {[%clk 0:02:59.2]} 1... d5 {[%clk 0:02:55.4]} 2. Nf3 {[%clk 0:02:59]} 2...
Nf6 {[%clk 0:02:53.2]} 3. c4 {[%clk 0:02:59.1]} 3... e6 {[%clk 0:02:53.7]} 4. e3
{[%clk 0:02:59.7]} 4... a6 {[%clk 0:02:49.2]} 5. b3 {[%clk 0:02:59.8]} 5... Bb4+
{[%clk 0:02:45]} 6. Nbd2 {[%clk 0:02:59.8]} 6... O-O {[%clk 0:02:30.1]} 7. Bd3
{[%clk 0:02:59.2]} 7... c5 {[%clk 0:02:26.9]} 8. Bb2 {[%clk 0:02:58.9]} 8...
cxd4 {[%clk 0:02:23.4]} 9. exd4 {[%clk 0:02:58.7]} 9... dxc4 {[%clk 0:02:23.5]}
10. bxc4 {[%clk 0:02:58.6]} 10... b5 {[%clk 0:02:20.7]} 11. O-O {[%clk 0:02:51]}
11... bxc4 {[%clk 0:02:18.6]} 12. Nxc4 {[%clk 0:02:50.8]} 12... Bb7 {[%clk
0:02:12.9]} 13. Nce5 {[%clk 0:02:50.4]} 13... Nbd7 {[%clk 0:02:02.2]} 14. Qe2
{[%clk 0:02:42]} 14... Nd5 {[%clk 0:01:57.6]} 15. Qe4 {[%clk 0:02:32.8]} 15...
N7f6 {[%clk 0:01:55.5]} 16. Qh4 {[%clk 0:02:32.7]} 16... Be7 {[%clk 0:01:52.7]}
17. Rab1 {[%clk 0:02:18.5]} 17... Nb4 {[%clk 0:01:44.9]} 18. Bc4 {[%clk
0:02:04.9]} 18... Rc8 {[%clk 0:01:29.5]} 19. a3 {[%clk 0:01:54.5]} 19... Bd5
{[%clk 0:01:05.6]} 20. Be2 {[%clk 0:01:46.1]} 20... Ne4 {[%clk 0:00:57.5]} 21.
Qh3 {[%clk 0:01:43.7]} 21... Nc6 {[%clk 0:00:38.4]} 22. Bxa6 {[%clk 0:01:43]}
22... Rb8 {[%clk 0:00:38.4]} 23. Bd3 {[%clk 0:01:43]} 23... f5 {[%clk
0:00:33.7]} 24. Nxc6 {[%clk 0:01:34.7]} 24... Bxc6 {[%clk 0:00:34]} 25. Ne5
{[%clk 0:01:29]} 25... Bd5 {[%clk 0:00:34.4]} 26. a4 {[%clk 0:01:19.9]} 26...
Nd2 {[%clk 0:00:31.1]} 27. Bb5 {[%clk 0:01:13.7]} 27... Nxb1 {[%clk 0:00:30.8]}
28. Rxb1 {[%clk 0:01:13.1]} 28... Rc8 {[%clk 0:00:20.9]} 29. Ba3 {[%clk
0:01:10.8]} 29... Bxa3 {[%clk 0:00:19.8]} 30. Qxa3 {[%clk 0:01:10.8]} 30... Qg5
{[%clk 0:00:18.2]} 31. Bf1 {[%clk 0:00:56.8]} 31... f4 {[%clk 0:00:15.8]} 32. a5
{[%clk 0:00:55.1]} 32... Rb8 {[%clk 0:00:14.8]} 33. Ra1 {[%clk 0:00:52.4]} 33...
Ra8 {[%clk 0:00:14.6]} 34. a6 {[%clk 0:00:51.9]} 34... Ra7 {[%clk 0:00:14.2]}
35. Qc5 {[%clk 0:00:47.7]} 35... Rfa8 {[%clk 0:00:14.3]} 36. Nc6 {[%clk
0:00:46.1]} 36... Rxa6 {[%clk 0:00:12.6]} 37. Rxa6 {[%clk 0:00:39.8]} 37... Rxa6
{[%clk 0:00:13]} 38. Ne7+ {[%clk 0:00:32.1]} 38... Kf7 {[%clk 0:00:12.9]} 39.
Nxd5 {[%clk 0:00:24.7]} 39... Ra1 {[%clk 0:00:12.8]} 40. Qc7+ {[%clk 0:00:20.6]}
40... Kg6 {[%clk 0:00:12.6]} 41. Nxf4+ {[%clk 0:00:19.4]} 41... Kh6 {[%clk
0:00:13.2]} 42. Qf7 {[%clk 0:00:12.8]} 42... g6 {[%clk 0:00:08.5]} 43. g3 {[%clk
0:00:09.5]} 43... Qf5 {[%clk 0:00:04.7]} 44. Qxf5 {[%clk 0:00:08.2]} 44... exf5
{[%clk 0:00:05.6]} 45. Kg2 {[%clk 0:00:08.6]} 45... Kg5 {[%clk 0:00:05.7]} 46.
h4+ {[%clk 0:00:08.3]} 46... Kf6 {[%clk 0:00:06.1]} 47. Be2 {[%clk 0:00:08.8]}
47... Ra2 {[%clk 0:00:06.3]} 48. Bf3 {[%clk 0:00:09]} 48... Rd2 {[%clk
0:00:06.3]} 49. d5 {[%clk 0:00:08.8]} 49... Ke5 {[%clk 0:00:07]} 50. Nh3 {[%clk
0:00:06.9]} 50... h6 {[%clk 0:00:07.2]} 51. Nf4 {[%clk 0:00:06.7]} 51... g5
{[%clk 0:00:07.7]} 52. hxg5 {[%clk 0:00:05.4]} 52... hxg5 {[%clk 0:00:08.6]} 53.
Nh5 {[%clk 0:00:05.8]} 53... g4 {[%clk 0:00:09]} 54. Nf4 {[%clk 0:00:05.2]}
54... gxf3+ {[%clk 0:00:09.1]} 55. Kxf3 {[%clk 0:00:05.7]} 55... Ra2 {[%clk
0:00:09.6]} 56. Kg2 {[%clk 0:00:05.9]} 56... Ra3 {[%clk 0:00:09.5]} 57. Kh3
{[%clk 0:00:05.5]} 57... Ra2 {[%clk 0:00:09.7]} 58. f3 {[%clk 0:00:04.4]} 58...
Ra8 {[%clk 0:00:10.1]} 59. Kh4 {[%clk 0:00:04.1]} 59... Rg8 {[%clk 0:00:10.1]}
60. Kh3 {[%clk 0:00:02.1]} 60... Rh8+ {[%clk 0:00:10.5]} 61. Kg2 {[%clk
0:00:02.3]} 61... Rg8 {[%clk 0:00:11.1]} 62. Kh3 {[%clk 0:00:02.6]} 62... Kf6
{[%clk 0:00:10.5]} 63. Kg2 {[%clk 0:00:02.2]} 63... Ke5 {[%clk 0:00:10.6]} 64.
Kh3 {[%clk 0:00:02.4]} 1/2-1/2

[Event "Early-Titled-Tuesday-Blitz-February-27-2024"]
[Site "Chess.com"]
[Date "2024.02.27"]
[Round "11"]
[White "ArtemDyachuk"]
[Black "viktorskliarov"]
[Result "0-1"]
[WhiteElo "2685"]
[BlackElo "2598"]
[TimeControl "180+1"]
[EndTime "10:07:11 PST"]
[Termination "viktorskliarov won by checkmate"]

1. d4 {[%clk 0:03:00.9]} 1... Nf6 {[%clk 0:02:50.2]} 2. Nf3 {[%clk 0:02:59]}
2... g6 {[%clk 0:02:50.3]} 3. Bf4 {[%clk 0:02:59.3]} 3... Bg7 {[%clk 0:02:50.7]}
4. Nbd2 {[%clk 0:02:58.9]} 4... O-O {[%clk 0:02:50.4]} 5. e4 {[%clk 0:02:58.7]}
5... d6 {[%clk 0:02:50.9]} 6. c3 {[%clk 0:02:58.4]} 6... Nbd7 {[%clk 0:02:50]}
7. h3 {[%clk 0:02:57.9]} 7... Qe8 {[%clk 0:02:49.6]} 8. e5 {[%clk 0:02:54.4]}
8... Nd5 {[%clk 0:02:30.7]} 9. Bg3 {[%clk 0:02:53.3]} 9... dxe5 {[%clk
0:02:10.3]} 10. dxe5 {[%clk 0:02:54.2]} 10... e6 {[%clk 0:02:10.4]} 11. Bd3
{[%clk 0:02:54.5]} 11... Nc5 {[%clk 0:02:08.7]} 12. Bc2 {[%clk 0:02:54.2]} 12...
a5 {[%clk 0:02:08.3]} 13. O-O {[%clk 0:02:53.9]} 13... b6 {[%clk 0:02:07.2]} 14.
Ne4 {[%clk 0:02:53.4]} 14... Nxe4 {[%clk 0:02:01.2]} 15. Bxe4 {[%clk 0:02:54.3]}
15... Ba6 {[%clk 0:02:01.8]} 16. Re1 {[%clk 0:02:54.3]} 16... Rd8 {[%clk
0:02:01.4]} 17. Qc2 {[%clk 0:02:54.3]} 17... h6 {[%clk 0:01:30.1]} 18. Bh4
{[%clk 0:02:53.5]} 18... g5 {[%clk 0:01:20.6]} 19. Nxg5 {[%clk 0:02:40.4]} 19...
hxg5 {[%clk 0:01:15.6]} 20. Bxg5 {[%clk 0:02:41.3]} 20... f5 {[%clk 0:00:59.5]}
21. exf6 {[%clk 0:02:22.4]} 21... Nxf6 {[%clk 0:00:59]} 22. Bg6 {[%clk 0:02:22]}
22... Qc6 {[%clk 0:00:57.5]} 23. Re3 {[%clk 0:02:15.5]} 23... Bb7 {[%clk
0:00:44.2]} 24. Rg3 {[%clk 0:02:14.8]} 24... Ne4 {[%clk 0:00:44.1]} 25. Bxe4
{[%clk 0:01:38.5]} 25... Qxe4 {[%clk 0:00:43.2]} 26. Qxe4 {[%clk 0:01:38.4]}
26... Bxe4 {[%clk 0:00:43.8]} 27. Re1 {[%clk 0:01:38.6]} 27... Bd5 {[%clk
0:00:37.8]} 28. Bxd8 {[%clk 0:01:24.4]} 28... Rxd8 {[%clk 0:00:38.7]} 29. b3
{[%clk 0:01:25.3]} 29... b5 {[%clk 0:00:38.3]} 30. c4 {[%clk 0:01:21.6]} 30...
bxc4 {[%clk 0:00:36.7]} 31. bxc4 {[%clk 0:01:22.5]} 31... Bxc4 {[%clk
0:00:34.7]} 32. Rc1 {[%clk 0:01:20.9]} 32... Rd4 {[%clk 0:00:29.1]} 33. Rgc3
{[%clk 0:01:19.7]} 33... Bxa2 {[%clk 0:00:26]} 34. Rxc7 {[%clk 0:01:19.2]} 34...
Bd5 {[%clk 0:00:18.9]} 35. Ra7 {[%clk 0:01:16.9]} 35... a4 {[%clk 0:00:11.8]}
36. Rc8+ {[%clk 0:01:13.6]} 36... Bf8 {[%clk 0:00:12.1]} 37. Rcc7 {[%clk
0:01:14.5]} 37... a3 {[%clk 0:00:10.1]} 38. Rc3 {[%clk 0:01:02.5]} 38... Rd1+
{[%clk 0:00:08.4]} 39. Kh2 {[%clk 0:01:01.6]} 39... Bd6+ {[%clk 0:00:08.5]} 40.
Rg3+ {[%clk 0:00:57.7]} 40... Bxg3+ {[%clk 0:00:08.5]} 41. Kxg3 {[%clk
0:00:58.6]} 41... a2 {[%clk 0:00:09.2]} 42. Rc7 {[%clk 0:00:50.5]} 42... a1=Q
{[%clk 0:00:09.3]} 43. Rc8+ {[%clk 0:00:51.4]} 43... Kf7 {[%clk 0:00:09.3]} 44.
Rc7+ {[%clk 0:00:51.4]} 44... Kf6 {[%clk 0:00:09.7]} 45. Kh4 {[%clk 0:00:48.8]}
45... Qd4+ {[%clk 0:00:09.5]} 46. g4 {[%clk 0:00:49.2]} 46... Qxf2+ {[%clk
0:00:09.3]} 47. Kh5 {[%clk 0:00:49.7]} 47... Ke5 {[%clk 0:00:09.1]} 48. Rg7
{[%clk 0:00:47.4]} 48... Rh1 {[%clk 0:00:08.1]} 49. Rg5+ {[%clk 0:00:40.7]}
49... Kd6 {[%clk 0:00:08.4]} 50. Kg6 {[%clk 0:00:32.4]} 50... Be4+ {[%clk
0:00:08.1]} 51. Kg7 {[%clk 0:00:32.3]} 51... Qd4+ {[%clk 0:00:07.1]} 52. Kg8
{[%clk 0:00:27.4]} 52... Rxh3 {[%clk 0:00:06.8]} 53. Rg7 {[%clk 0:00:27.1]}
53... Rh7 {[%clk 0:00:04.4]} 54. Rxh7 {[%clk 0:00:18.1]} 54... Bxh7+ {[%clk
0:00:04.5]} 55. Kf7 {[%clk 0:00:19]} 55... Bg8+ {[%clk 0:00:03.5]} 56. Kf8
{[%clk 0:00:19.9]} 56... Bf7 {[%clk 0:00:02.6]} 57. g5 {[%clk 0:00:18]} 57...
Bg6 {[%clk 0:00:01.3]} 58. Kg8 {[%clk 0:00:17.7]} 58... Bf5 {[%clk 0:00:01.8]}
59. Kf8 {[%clk 0:00:18.6]} 59... Ke5 {[%clk 0:00:02.3]} 60. Kf7 {[%clk
0:00:19.5]} 60... Kf4 {[%clk 0:00:02.8]} 61. g6 {[%clk 0:00:20.4]} 61... Bxg6+
{[%clk 0:00:03.3]} 62. Ke7 {[%clk 0:00:19.2]} 62... Qe5 {[%clk 0:00:03.9]} 63.
Kd7 {[%clk 0:00:19.3]} 63... Be4 {[%clk 0:00:04.5]} 64. Ke7 {[%clk 0:00:20.2]}
64... Bh1 {[%clk 0:00:05.4]} 65. Kf7 {[%clk 0:00:20.9]} 65... Kf5 {[%clk
0:00:05.9]} 66. Ke7 {[%clk 0:00:21.4]} 66... Qc7+ {[%clk 0:00:06.2]} 67. Ke8
{[%clk 0:00:21]} 67... Kf6 {[%clk 0:00:07.1]} 68. Kf8 {[%clk 0:00:21.9]} 68...
Qf7# {[%clk 0:00:07.6]} 0-1

[Event "Early-Titled-Tuesday-Blitz-February-27-2024"]
[Site "Chess.com"]
[Date "2024.02.27"]
[Round "11"]
[White "Herman-NY"]
[Black "janhelmer03"]
[Result "1-0"]
[WhiteElo "2533"]
[BlackElo "2369"]
[TimeControl "180+1"]
[EndTime "10:07:11 PST"]
[Termination "Herman-NY won on time"]

1. e4 {[%clk 0:03:00.9]} 1... c5 {[%clk 0:02:53.8]} 2. Nf3 {[%clk 0:03:01.2]}
2... Nc6 {[%clk 0:02:52.2]} 3. Bb5 {[%clk 0:03:01.1]} 3... Nf6 {[%clk 0:02:52]}
4. Bxc6 {[%clk 0:02:59]} 4... bxc6 {[%clk 0:02:49.7]} 5. d3 {[%clk 0:02:53.6]}
5... d6 {[%clk 0:02:47.2]} 6. e5 {[%clk 0:02:50.7]} 6... Nd5 {[%clk 0:02:44.4]}
7. h3 {[%clk 0:02:50.3]} 7... g6 {[%clk 0:02:44.4]} 8. O-O {[%clk 0:02:50]} 8...
Bg7 {[%clk 0:02:45]} 9. Re1 {[%clk 0:02:50.7]} 9... O-O {[%clk 0:02:45.1]} 10.
Nbd2 {[%clk 0:02:45.9]} 10... Qc7 {[%clk 0:02:44.8]} 11. Nc4 {[%clk 0:02:46]}
11... Nb6 {[%clk 0:02:42.6]} 12. Bf4 {[%clk 0:02:16.5]} 12... d5 {[%clk
0:02:32.8]} 13. Ne3 {[%clk 0:02:05.7]} 13... Be6 {[%clk 0:02:27.4]} 14. Qd2
{[%clk 0:01:30.9]} 14... Nd7 {[%clk 0:02:03.8]} 15. Nf1 {[%clk 0:01:19.2]} 15...
Rab8 {[%clk 0:01:48.2]} 16. Rab1 {[%clk 0:01:13.6]} 16... Qb6 {[%clk 0:01:02.5]}
17. Bh6 {[%clk 0:00:58.5]} 17... Qb4 {[%clk 0:00:57.6]} 18. Qc1 {[%clk 0:00:43]}
18... d4 {[%clk 0:00:43.9]} 19. b3 {[%clk 0:00:40.9]} 19... a5 {[%clk
0:00:33.8]} 20. a4 {[%clk 0:00:40.8]} 20... Bd5 {[%clk 0:00:22.9]} 21. Bxg7
{[%clk 0:00:38.9]} 21... Kxg7 {[%clk 0:00:23.2]} 22. N3h2 {[%clk 0:00:36.2]}
22... Be6 {[%clk 0:00:16.8]} 23. Ng3 {[%clk 0:00:31.8]} 23... h6 {[%clk
0:00:16.1]} 24. Nf3 {[%clk 0:00:29.5]} 24... Bd5 {[%clk 0:00:15.5]} 25. Nd2
{[%clk 0:00:29.2]} 25... Qb6 {[%clk 0:00:13.5]} 26. Re2 {[%clk 0:00:27.3]} 26...
Qc7 {[%clk 0:00:13.8]} 27. Qe1 {[%clk 0:00:27.1]} 27... Rbe8 {[%clk 0:00:11.9]}
28. f4 {[%clk 0:00:20.3]} 28... f6 {[%clk 0:00:12]} 29. e6 {[%clk 0:00:20]}
29... Nb6 {[%clk 0:00:11.4]} 30. f5 {[%clk 0:00:18.8]} 30... g5 {[%clk
0:00:09.4]} 31. Nh5+ {[%clk 0:00:19]} 31... Kh7 {[%clk 0:00:09.8]} 32. Nf1
{[%clk 0:00:16.1]} 32... Nc8 {[%clk 0:00:09.2]} 33. Nfg3 {[%clk 0:00:15.5]}
33... Nd6 {[%clk 0:00:09.7]} 34. Qf2 {[%clk 0:00:13.5]} 34... Rb8 {[%clk
0:00:07.7]} 35. Rf1 {[%clk 0:00:13.1]} 35... Ne8 {[%clk 0:00:03.8]} 36. Qe1
{[%clk 0:00:12]} 36... Ng7 {[%clk 0:00:04.4]} 37. Nxg7 {[%clk 0:00:12]} 37...
Kxg7 {[%clk 0:00:05.3]} 38. Nh5+ {[%clk 0:00:12.4]} 38... Kh7 {[%clk 0:00:05.4]}
39. Qf2 {[%clk 0:00:12.6]} 39... Rg8 {[%clk 0:00:02.5]} 40. g4 {[%clk 0:00:11]}
40... Rgf8 {[%clk 0:00:02.4]} 41. Qe1 {[%clk 0:00:10]} 41... Rg8 {[%clk
0:00:01.9]} 42. Rh2 {[%clk 0:00:08.8]} 42... Rgf8 {[%clk 0:00:02.4]} 43. Qd2
{[%clk 0:00:08.8]} 43... Rb4 {[%clk 0:00:02]} 44. Re2 {[%clk 0:00:08.7]} 44...
Qb8 {[%clk 0:00:01.7]} 45. Rff2 {[%clk 0:00:08.1]} 45... Rb7 {[%clk 0:00:02.3]}
46. Qe1 {[%clk 0:00:08.1]} 46... c4 {[%clk 0:00:02.8]} 47. dxc4 {[%clk
0:00:08.2]} 47... d3 {[%clk 0:00:02.6]} 48. cxd3 {[%clk 0:00:07.5]} 48... Rxb3
{[%clk 0:00:03]} 49. cxd5 {[%clk 0:00:07.8]} 49... cxd5 {[%clk 0:00:03.9]} 50.
Re3 {[%clk 0:00:07.3]} 50... Rb1 {[%clk 0:00:04.2]} 51. Kg2 {[%clk 0:00:07.2]}
51... Rxe1 {[%clk 0:00:04.4]} 52. Rxe1 {[%clk 0:00:08.1]} 52... d4 {[%clk
0:00:04.9]} 53. Ng3 {[%clk 0:00:07.7]} 53... Qb7+ {[%clk 0:00:05.3]} 54. Ne4
{[%clk 0:00:07.7]} 54... Rc8 {[%clk 0:00:06]} 55. Ree2 {[%clk 0:00:08.4]} 55...
Rc3 {[%clk 0:00:06.1]} 56. Rb2 {[%clk 0:00:08.1]} 56... Qd5 {[%clk 0:00:06.3]}
57. Rfd2 {[%clk 0:00:05.5]} 57... Rxd3 {[%clk 0:00:06.3]} 58. Rxd3 {[%clk
0:00:06.4]} 58... Qxe4+ {[%clk 0:00:06.4]} 59. Rf3 {[%clk 0:00:07.1]} 59... d3
{[%clk 0:00:07.1]} 60. Rd2 {[%clk 0:00:07.2]} 60... Qxa4 {[%clk 0:00:06.1]} 61.
Rfxd3 {[%clk 0:00:07.2]} 61... h5 {[%clk 0:00:07]} 62. Rd7 {[%clk 0:00:06.7]}
62... hxg4 {[%clk 0:00:07.1]} 63. Rxe7+ {[%clk 0:00:07]} 63... Kh6 {[%clk
0:00:07.8]} 64. Rdd7 {[%clk 0:00:04.7]} 64... gxh3+ {[%clk 0:00:04]} 65. Kxh3
{[%clk 0:00:04]} 65... Qh4+ {[%clk 0:00:04.7]} 66. Kg2 {[%clk 0:00:04.6]} 66...
Qg4+ {[%clk 0:00:05.3]} 67. Kh1 {[%clk 0:00:05.1]} 67... Qxf5 {[%clk 0:00:04.6]}
68. Rh7+ {[%clk 0:00:05.5]} 1-0